[Event "ONJK FGH 1"]
[Site "Enschede, Netherlands"]
[Date "2022.08.08"]
[Round "2.3"]
[White "Georgopoulos-Karbouniaris"]
[Black "Zantingh, Syd"]
[Result "1/2-1/2"]
[TimeControl "25min + 10sec/move"]
[WhiteElo "787"]
[BlackElo "651"]

1. e4 {[%clk 00:25:19]} {[%emt 00:00:01]} e5 {[%clk 00:25:19]} 2. Nf3 {[%clk
00:25:28]} Nc6 {[%clk 00:25:28]} 3. Bc4 {[%clk 00:25:36]} {[%emt 00:00:02]} Bc5
{[%clk 00:25:36]} {[%emt 00:00:02]} 4. d3 {[%clk 00:25:43]} {[%emt 00:00:04]}
Nf6 {[%clk 00:25:45]} {[%emt 00:00:01]} 5. Nc3 {[%clk 00:25:51]} {[%emt
00:00:02]} d6 {[%clk 00:25:53]} {[%emt 00:00:01]} 6. h3 {[%clk 00:26:00]}
{[%emt 00:00:02]} Be6 {[%clk 00:26:00]} {[%emt 00:00:02]} 7. Bxe6 {[%clk
00:26:05]} {[%emt 00:00:06]} fxe6 {[%clk 00:26:09]} {[%emt 00:00:01]} 8. Bg5
{[%clk 00:26:12]} {[%emt 00:00:03]} h6 {[%clk 00:26:17]} {[%emt 00:00:01]} 9.
Bh4 {[%clk 00:26:20]} {[%emt 00:00:02]} O-O {[%clk 00:26:26]} {[%emt 00:00:02]}
10. O-O {[%clk 00:26:25]} {[%emt 00:00:05]} a6 {[%emt 00:00:03]} 11. a3 Bd4
{[%clk 00:26:29]} {[%emt 00:00:03]} 12. Rb1 {[%clk 00:26:00]} {[%emt 00:00:35]}
Bxc3 {[%clk 00:26:37]} {[%emt 00:00:02]} 13. bxc3 {[%clk 00:26:07]} {[%emt
00:00:03]} d5 {[%clk 00:26:41]} {[%emt 00:00:06]} 14. exd5 {[%clk 00:26:11]}
{[%emt 00:00:06]} exd5 {[%emt 00:00:04]} 15. c4 {[%clk 00:26:03]} {[%emt
00:00:15]} e4 {[%clk 00:26:58]} {[%emt 00:00:01]} 16. dxe4 {[%clk 00:26:11]}
{[%emt 00:00:03]} dxe4 {[%clk 00:27:07]} {[%emt 00:00:01]} 17. Qxd8 {[%clk
00:26:16]} {[%emt 00:00:04]} Raxd8 {[%clk 00:27:12]} {[%emt 00:00:06]} 18. Bxf6
{[%clk 00:25:53]} {[%emt 00:00:33]} Rxf6 {[%clk 00:27:19]} {[%emt 00:00:03]} 19.
Nh2 {[%clk 00:25:51]} {[%emt 00:00:12]} Rd2 {[%clk 00:27:26]} {[%emt 00:00:03]}
20. Rxb7 {[%clk 00:25:53]} {[%emt 00:00:08]} Rxc2 {[%clk 00:27:33]} {[%emt
00:00:02]} 21. Rxc7 {[%clk 00:25:56]} {[%emt 00:00:08]} Rxc4 {[%clk 00:27:40]}
{[%emt 00:00:03]} 22. Rc8+ {[%clk 00:25:56]} {[%emt 00:00:10]} Kh7 {[%clk
00:27:46]} {[%emt 00:00:03]} 23. Ng4 {[%clk 00:25:50]} {[%emt 00:00:16]} Rd6
{[%clk 00:27:51]} {[%emt 00:00:05]} 24. Ne3 {[%clk 00:25:30]} {[%emt 00:00:32]}
Rc3 {[%clk 00:27:57]} {[%emt 00:00:02]} 25. Nf5 {[%clk 00:25:03]} {[%emt
00:00:37]} Rf6 {[%clk 00:28:04]} {[%emt 00:00:03]} 26. Nd4 {[%clk 00:25:06]}
{[%emt 00:00:08]} a5 {[%clk 00:27:55]} {[%emt 00:00:18]} 27. Nb5 {[%clk
00:24:51]} {[%emt 00:00:25]} Rc5 {[%clk 00:28:00]} {[%emt 00:00:05]} 28. Na7
{[%clk 00:24:36]} {[%emt 00:00:26]} a4 {[%clk 00:27:54]} {[%emt 00:00:18]} 29.
Nb5 {[%clk 00:24:38]} {[%emt 00:00:07]} Rxb5 {[%clk 00:28:02]} {[%emt
00:00:02]} 30. Re1 {[%clk 00:24:33]} {[%emt 00:00:15]} Rb3 {[%clk 00:28:10]}
{[%emt 00:00:02]} 31. Rxe4 {[%clk 00:24:36]} {[%emt 00:00:07]} Na5 {[%clk
00:28:12]} {[%emt 00:00:08]} 32. h4 {[%clk 00:24:38]} {[%emt 00:00:08]} Rxa3
{[%clk 00:28:20]} {[%emt 00:00:02]} 33. h5 {[%clk 00:24:42]} {[%emt 00:00:06]}
Rf5 {[%clk 00:28:29]} 34. Ree8 {[%clk 00:24:44]} {[%emt 00:00:08]} Rxh5 {[%clk
00:28:21]} {[%emt 00:00:18]} 35. Re1 {[%clk 00:24:13]} {[%emt 00:00:40]} g5
{[%clk 00:28:11]} {[%emt 00:00:20]} 36. Rc7+ {[%clk 00:24:11]} {[%emt
00:00:13]} Kg6 {[%clk 00:28:18]} {[%emt 00:00:03]} 37. Re6+ {[%clk 00:24:18]}
{[%emt 00:00:02]} Kf5 {[%clk 00:28:28]} {[%emt 00:00:01]} 38. Re1 {[%clk
00:24:20]} {[%emt 00:00:08]} g4 {[%clk 00:28:32]} {[%emt 00:00:05]} 39. Rc5+
{[%clk 00:24:28]} {[%emt 00:00:03]} Kg6 {[%clk 00:28:38]} {[%emt 00:00:04]} 40.
Re6+ {[%clk 00:24:20]} {[%emt 00:00:17]} Kg7 {[%clk 00:28:41]} {[%emt
00:00:07]} 41. Rxh5 {[%clk 00:24:23]} {[%emt 00:00:08]} Ra1+ {[%clk 00:28:50]}
{[%emt 00:00:01]} 42. Kh2 {[%clk 00:24:30]} {[%emt 00:00:03]} Nc4 {[%clk
00:28:57]} {[%emt 00:00:02]} 43. Ra6 {[%clk 00:24:22]} {[%emt 00:00:18]} Ra2
{[%clk 00:28:59]} {[%emt 00:00:09]} 44. Rb5 {[%clk 00:24:22]} {[%emt 00:00:09]}
Rxf2 {[%clk 00:29:06]} {[%emt 00:00:04]} 45. Rb7+ {[%clk 00:24:14]} {[%emt
00:00:19]} Rf7 {[%clk 00:29:11]} {[%emt 00:00:03]} 46. Rxf7+ {[%clk 00:24:13]}
{[%emt 00:00:12]} Kxf7 {[%clk 00:29:20]} 47. Rxa4 {[%clk 00:24:14]} {[%emt
00:00:09]} Ne5 {[%clk 00:29:27]} {[%emt 00:00:03]} 48. Kg3 {[%clk 00:24:20]}
{[%emt 00:00:05]} h5 {[%clk 00:29:36]} 49. Kh4 {[%clk 00:24:28]} {[%emt
00:00:02]} Kg6 {[%clk 00:29:45]} {[%emt 00:00:02]} 50. Ra6+ {[%clk 00:24:27]}
{[%emt 00:00:10]} Kf5 {[%clk 00:29:53]} {[%emt 00:00:02]} 51. Ra5 {[%clk
00:24:28]} {[%emt 00:00:09]} Kf4 {[%clk 00:29:53]} {[%emt 00:00:09]} 52. Kxh5
{[%clk 00:24:21]} {[%emt 00:00:17]} Nd3 {[%clk 00:29:58]} {[%emt 00:00:06]} 53.
Ra4+ {[%clk 00:24:25]} {[%emt 00:00:06]} Kg3 {[%clk 00:30:04]} {[%emt
00:00:03]} 54. Rxg4+ {[%clk 00:24:32]} {[%emt 00:00:04]} Kf2 {[%clk 00:30:13]}
55. Rg8 {[%clk 00:24:31]} {[%emt 00:00:10]} Nf4+ {[%clk 00:30:19]} {[%emt
00:00:04]} 56. Kh4 {[%clk 00:24:35]} {[%emt 00:00:06]} Nxg2+ {[%clk 00:30:28]}
{[%emt 00:00:02]} 57. Kh3 {[%clk 00:24:31]} {[%emt 00:00:13]} Nf4+ {[%clk
00:30:37]} {[%emt 00:00:01]} 58. Kh2 {[%clk 00:24:34]} {[%emt 00:00:07]} Ke3
{[%clk 00:30:41]} {[%emt 00:00:07]} 59. Re8+ {[%clk 00:24:40]} {[%emt
00:00:04]} Kf2 {[%clk 00:30:49]} {[%emt 00:00:01]} 60. Rf8 {[%clk 00:24:48]}
{[%emt 00:00:03]} Kf3 {[%clk 00:30:57]} {[%emt 00:00:02]} 61. Kg1 {[%clk
00:24:53]} {[%emt 00:00:16]} Kg3 {[%clk 00:31:12]} {[%emt 00:00:03]} 62. Rg8+
{[%clk 00:24:59]} {[%emt 00:00:04]} Kf3 {[%clk 00:31:21]} {[%emt 00:00:02]} 63.
Ra8 {[%clk 00:25:06]} {[%emt 00:00:03]} Nh3+ {[%clk 00:31:28]} {[%emt
00:00:03]} 64. Kh2 {[%clk 00:25:09]} {[%emt 00:00:07]} Nf2 {[%clk 00:31:36]} 65.
Ra3+ {[%clk 00:25:16]} {[%emt 00:00:03]} Kf4 {[%clk 00:31:44]} {[%emt
00:00:03]} 66. Kg2 {[%clk 00:25:22]} {[%emt 00:00:05]} Ng4 {[%clk 00:31:52]}
{[%emt 00:00:02]} 67. Ra4+ {[%clk 00:25:26]} {[%emt 00:00:06]} Kg5 {[%clk
00:32:00]} {[%emt 00:00:01]} 68. Kg3 {[%clk 00:25:30]} {[%emt 00:00:06]} Nf6
{[%clk 00:32:07]} {[%emt 00:00:03]} 69. Ra5+ {[%clk 00:25:37]} {[%emt
00:00:04]} Kg6 {[%clk 00:32:16]} 70. Kf4 {[%clk 00:25:39]} {[%emt 00:00:08]}
Kf7 {[%clk 00:32:22]} {[%emt 00:00:04]} 71. Ra6 {[%clk 00:25:35]} {[%emt
00:00:14]} Nd5+ {[%clk 00:32:30]} {[%emt 00:00:02]} 72. Kf5 {[%clk 00:25:34]}
{[%emt 00:00:11]} Ne3+ {[%clk 00:32:36]} {[%emt 00:00:03]} 73. Ke4 {[%clk
00:25:43]} {[%emt 00:00:02]} Nc4 {[%clk 00:32:45]} {[%emt 00:00:01]} 74. Kf5
{[%clk 00:25:49]} {[%emt 00:00:04]} Ne3+ {[%clk 00:32:52]} {[%emt 00:00:03]} 75.
Kg5 {[%clk 00:25:57]} {[%emt 00:00:02]} Nc4 {[%clk 00:32:57]} {[%emt 00:00:04]}
76. Ra7+ {[%clk 00:26:02]} {[%emt 00:00:06]} Ke6 {[%clk 00:33:06]} {[%emt
00:00:01]} 77. Ra8 {[%clk 00:25:58]} {[%emt 00:00:14]} Ne5 {[%clk 00:33:09]}
{[%emt 00:00:05]} 78. Re8+ {[%clk 00:26:01]} {[%emt 00:00:09]} Kd6 {[%clk
00:33:18]} {[%emt 00:00:01]} 79. Kf5 {[%clk 00:26:07]} {[%emt 00:00:04]} Nd7
{[%clk 00:33:23]} {[%emt 00:00:04]} 80. Rd8 {[%clk 00:26:10]} {[%emt 00:00:07]}
Kc7 {[%clk 00:33:31]} {[%emt 00:00:03]} 81. Rh8 {[%clk 00:26:15]} {[%emt
00:00:05]} Kc6 {[%emt 00:00:03]} 82. Ke6 {[%clk 00:26:17]} {[%emt 00:00:07]}
Nc5 {[%clk 00:33:47]} {[%emt 00:00:02]} 83. Ke5 {[%clk 00:26:23]} {[%emt
00:00:04]} Nd3+ {[%clk 00:33:54]} {[%emt 00:00:03]} 84. Ke4 {[%clk 00:26:31]}
{[%emt 00:00:02]} Nc5+ {[%clk 00:34:00]} {[%emt 00:00:04]} 85. Kd4 {[%clk
00:26:40]} Nb3+ {[%clk 00:34:09]} {[%emt 00:00:01]} 86. Kc4 {[%emt 00:00:03]}
Na5+ {[%clk 00:34:18]} 87. Kb4 {[%clk 00:26:56]} Nb7 {[%clk 00:34:27]} {[%emt
00:00:02]} 88. Rh6+ {[%clk 00:26:58]} {[%emt 00:00:06]} Nd6 {[%emt 00:00:03]}
89. Kc3 {[%clk 00:27:04]} {[%emt 00:00:04]} Kd5 {[%clk 00:34:44]} {[%emt
00:00:02]} 90. Kd3 {[%clk 00:27:10]} {[%emt 00:00:03]} Nf5 {[%clk 00:34:51]}
{[%emt 00:00:03]} 91. Rh5 {[%clk 00:27:18]} {[%emt 00:00:03]} Ke5 {[%clk
00:34:59]} {[%emt 00:00:02]} 92. Ke2 {[%clk 00:27:20]} {[%emt 00:00:08]} Ke4
{[%clk 00:35:08]} 93. Kf2 {[%clk 00:27:26]} {[%emt 00:00:03]} Kf4 {[%clk
00:35:16]} {[%emt 00:00:03]} 94. Rh8 {[%clk 00:27:29]} {[%emt 00:00:07]} Nd4
{[%clk 00:35:21]} {[%emt 00:00:05]} 95. Rf8+ {[%clk 00:27:31]} {[%emt
00:00:08]} Ke5 {[%clk 00:35:30]} {[%emt 00:00:02]} 96. Re8+ {[%clk 00:27:38]}
{[%emt 00:00:02]} Kd5 {[%clk 00:35:38]} {[%emt 00:00:02]} 97. Ke3 {[%clk
00:27:46]} {[%emt 00:00:02]} Nc2+ {[%clk 00:35:46]} {[%emt 00:00:02]} 98. Kd2
{[%clk 00:27:51]} {[%emt 00:00:04]} Nd4 {[%clk 00:35:55]} {[%emt 00:00:01]} 99.
Kd3 {[%clk 00:27:56]} {[%emt 00:00:04]} Nc6 {[%clk 00:36:04]} {[%emt 00:00:03]}
100. Re4 {[%clk 00:27:58]} {[%emt 00:00:07]} Ne5+ {[%clk 00:36:09]} {[%emt
00:00:06]} 101. Kc3 {[%clk 00:27:59]} {[%emt 00:00:08]} Kxe4 {[%clk 00:36:15]}
{[%emt 00:00:05]} 1/2-1/2

[Event "ONJK FGH 1"]
[Site "Enschede, Netherlands"]
[Date "2022.08.09"]
[Round "3.1"]
[White "Westerhof, Siem"]
[Black "De Wit, Jim"]
[Result "0-1"]
[TimeControl "25min + 10sec/move"]
[WhiteElo "739"]
[BlackElo "889"]

1. e4 {[%clk 00:25:18]} {[%emt 00:00:01]} c5 {[%clk 00:25:17]} {[%emt
00:00:03]} 2. Nf3 {[%clk 00:25:26]} {[%emt 00:00:02]} d6 {[%clk 00:25:26]}
{[%emt 00:00:02]} 3. Bc4 {[%clk 00:25:30]} {[%emt 00:00:05]} Nf6 {[%clk
00:25:33]} {[%emt 00:00:03]} 4. d3 {[%clk 00:25:30]} {[%emt 00:00:10]} Bg4
{[%clk 00:25:35]} {[%emt 00:00:08]} 5. Nc3 {[%clk 00:25:19]} {[%emt 00:00:21]}
a6 {[%clk 00:25:39]} {[%emt 00:00:07]} 6. Bg5 {[%clk 00:24:58]} {[%emt
00:00:30]} e6 {[%clk 00:25:40]} {[%emt 00:00:10]} 7. O-O {[%clk 00:24:00]}
{[%emt 00:01:07]} Nc6 {[%clk 00:25:36]} {[%emt 00:00:15]} 8. Qe2 {[%clk
00:22:43]} {[%emt 00:01:26]} Nd4 {[%clk 00:25:38]} {[%emt 00:00:07]} 9. Qd1
{[%clk 00:22:21]} {[%emt 00:00:33]} Bxf3 {[%clk 00:25:29]} {[%emt 00:00:19]} 10.
gxf3 {[%clk 00:22:28]} {[%emt 00:00:03]} b5 {[%clk 00:25:31]} {[%emt 00:00:06]}
11. Bxf6 {[%clk 00:22:30]} {[%emt 00:00:10]} Qxf6 {[%clk 00:25:07]} {[%emt
00:00:05]} 12. Bb3 {[%clk 00:22:08]} {[%emt 00:01:02]} Nxf3+ {[%clk 00:24:50]}
{[%emt 00:00:26]} 13. Kh1 {[%clk 00:22:03]} {[%emt 00:00:16]} Qf4 {[%clk
00:24:56]} {[%emt 00:00:02]} 14. Qxf3 {[%clk 00:21:09]} {[%emt 00:01:04]} Qxf3+
{[%clk 00:25:01]} {[%emt 00:00:06]} 15. Kg1 {[%clk 00:21:11]} {[%emt 00:00:22]}
Qg4+ {[%clk 00:24:54]} {[%emt 00:00:22]} 16. Kh1 {[%clk 00:21:19]} {[%emt
00:00:02]} Qg5 {[%clk 00:25:01]} {[%emt 00:00:03]} 17. Rg1 {[%clk 00:21:27]}
{[%emt 00:00:02]} Qd8 {[%clk 00:25:10]} {[%emt 00:00:02]} 18. Rad1 {[%clk
00:21:34]} {[%emt 00:00:04]} b4 {[%emt 00:00:04]} 19. Ne2 {[%emt 00:00:03]} a5
{[%clk 00:25:10]} {[%emt 00:00:02]} 20. Bc4 {[%clk 00:21:31]} {[%emt 00:00:13]}
Be7 {[%emt 00:00:05]} 21. Bb5+ {[%emt 00:00:03]} Kf8 {[%clk 00:25:09]} {[%emt
00:00:02]} 22. c4 {[%clk 00:21:15]} {[%emt 00:00:27]} bxc3 {[%emt 00:00:13]} 23.
bxc3 {[%clk 00:21:19]} {[%emt 00:00:02]} Rb8 {[%clk 00:25:08]} {[%emt
00:00:10]} 24. Bc4 {[%clk 00:21:26]} {[%emt 00:00:06]} d5 {[%clk 00:25:13]}
{[%emt 00:00:04]} 25. Bb3 {[%clk 00:21:30]} {[%emt 00:00:06]} Qd6 {[%clk
00:24:59]} {[%emt 00:00:23]} 26. exd5 {[%clk 00:21:21]} {[%emt 00:00:20]} exd5
{[%clk 00:25:00]} {[%emt 00:00:08]} 27. Rg3 {[%clk 00:21:08]} {[%emt 00:00:24]}
h5 {[%clk 00:24:45]} {[%emt 00:00:25]} 28. Rgg1 {[%clk 00:20:56]} {[%emt
00:00:22]} Bd8 {[%clk 00:24:48]} {[%emt 00:00:07]} 29. c4 {[%clk 00:21:04]}
{[%emt 00:00:03]} Bc7 {[%clk 00:24:55]} {[%emt 00:00:02]} 30. Rg2 {[%clk
00:21:07]} {[%emt 00:00:06]} h4 {[%clk 00:25:00]} {[%emt 00:00:04]} 31. h3
{[%clk 00:21:10]} {[%emt 00:00:07]} Qd7 {[%clk 00:24:59]} {[%emt 00:00:12]} 32.
Kg1 {[%clk 00:21:13]} {[%emt 00:00:07]} d4 {[%clk 00:24:57]} {[%emt 00:00:12]}
33. Kh1 {[%clk 00:20:55]} {[%emt 00:00:28]} Qxh3+ {[%clk 00:24:41]} {[%emt
00:00:24]} 34. Kg1 {[%clk 00:21:02]} {[%emt 00:00:05]} Rb6 {[%clk 00:24:42]}
{[%emt 00:00:08]} 35. Kf1 {[%clk 00:20:42]} {[%emt 00:00:31]} Rg6 {[%clk
00:23:51]} {[%emt 00:01:01]} 0-1

[Event "ONJK FGH 1"]
[Site "Enschede, Netherlands"]
[Date "2022.08.09"]
[Round "3.2"]
[White "Okita, Ryoga"]
[Black "Terlouw, Frank"]
[Result "1-0"]
[TimeControl "25min + 10sec/move"]
[WhiteElo "829"]
[BlackElo "731"]

1. e4 {[%clk 00:25:17]} {[%emt 00:00:03]} d6 {[%clk 00:25:11]} {[%emt
00:00:09]} 2. d4 {[%clk 00:25:18]} {[%emt 00:00:10]} Nf6 {[%emt 00:00:02]} 3.
Nc3 {[%emt 00:00:02]} c6 {[%emt 00:00:02]} 4. Bg5 {[%emt 00:00:03]} Qa5 {[%clk
00:25:06]} {[%emt 00:00:05]} 5. Bxf6 {[%clk 00:25:19]} {[%emt 00:00:10]} gxf6
{[%clk 00:25:12]} {[%emt 00:00:02]} 6. Nf3 {[%clk 00:25:18]} {[%emt 00:00:13]}
e5 {[%clk 00:25:17]} {[%emt 00:00:04]} 7. d5 {[%clk 00:25:24]} {[%emt
00:00:05]} Be7 {[%clk 00:24:38]} {[%emt 00:00:46]} 8. Bc4 {[%clk 00:25:17]}
{[%emt 00:00:20]} Qb4 {[%clk 00:24:21]} {[%emt 00:00:26]} 9. Bb3 {[%clk
00:24:57]} {[%emt 00:00:29]} b5 {[%clk 00:24:06]} {[%emt 00:00:22]} 10. a3
{[%clk 00:24:54]} {[%emt 00:00:18]} Qa5 {[%clk 00:24:07]} {[%emt 00:00:08]} 11.
Ba2 {[%clk 00:24:48]} {[%emt 00:00:16]} Bd7 {[%emt 00:00:13]} 12. b4 {[%emt
00:00:06]} Qc7 {[%clk 00:23:55]} {[%emt 00:00:03]} 13. Qd3 {[%clk 00:24:24]}
{[%emt 00:00:34]} Bg4 {[%clk 00:23:35]} {[%emt 00:00:26]} 14. dxc6 {[%clk
00:24:20]} {[%emt 00:00:19]} Nxc6 {[%clk 00:23:39]} {[%emt 00:00:04]} 15. Nxb5
{[%clk 00:24:27]} {[%emt 00:00:04]} Qb6 {[%emt 00:00:24]} 16. Nd2 {[%emt
00:00:26]} Be6 {[%clk 00:22:36]} {[%emt 00:00:06]} 17. Bxe6 {[%clk 00:24:30]}
{[%emt 00:00:25]} fxe6 {[%clk 00:22:42]} {[%emt 00:00:03]} 18. Nxd6+ {[%clk
00:24:36]} {[%emt 00:00:04]} Bxd6 {[%clk 00:22:45]} {[%emt 00:00:02]} 19. Qxd6
{[%clk 00:24:46]} Nd4 {[%clk 00:21:23]} {[%emt 00:01:36]} 20. Qxb6 {[%clk
00:24:36]} {[%emt 00:00:22]} axb6 {[%clk 00:21:31]} {[%emt 00:00:01]} 21. Ra2
{[%clk 00:24:29]} {[%emt 00:00:17]} Rxa3 {[%clk 00:21:22]} {[%emt 00:00:20]} 22.
Rxa3 {[%clk 00:24:26]} {[%emt 00:00:13]} Nxc2+ {[%clk 00:21:29]} {[%emt
00:00:02]} 23. Ke2 {[%clk 00:24:36]} Nxa3 {[%clk 00:21:36]} {[%emt 00:00:03]}
24. Ra1 {[%clk 00:24:37]} {[%emt 00:00:09]} Nc2 {[%clk 00:21:40]} {[%emt
00:00:05]} 25. Ra8+ {[%clk 00:24:46]} {[%emt 00:00:03]} Kf7 {[%emt 00:00:04]}
26. Rxh8 {[%emt 00:00:02]} Kg7 {[%emt 00:00:03]} 27. Rb8 {[%emt 00:00:01]} Nxb4
{[%clk 00:21:35]} {[%emt 00:00:04]} 28. Rxb6 {[%clk 00:24:53]} {[%emt
00:00:04]} Nc2 {[%clk 00:21:38]} {[%emt 00:00:03]} 29. Nf3 {[%clk 00:24:56]}
{[%emt 00:00:09]} Na3 {[%clk 00:21:42]} {[%emt 00:00:04]} 30. Rxe6 {[%clk
00:25:03]} {[%emt 00:00:06]} Nc4 {[%clk 00:21:44]} {[%emt 00:00:02]} 31. Re7+
{[%clk 00:25:07]} {[%emt 00:00:11]} Kg6 {[%clk 00:21:37]} {[%emt 00:00:04]} 32.
Kd3 {[%clk 00:25:00]} {[%emt 00:00:27]} Nb2+ {[%clk 00:21:52]} {[%emt
00:00:05]} 33. Kc2 {[%clk 00:25:04]} {[%emt 00:00:06]} Nc4 {[%clk 00:22:00]}
{[%emt 00:00:02]} 34. Kc3 {[%clk 00:25:01]} {[%emt 00:00:14]} Nb6 {[%clk
00:22:01]} {[%emt 00:00:09]} 35. Re6 {[%clk 00:25:04]} {[%emt 00:00:06]} Nd7
{[%clk 00:22:05]} {[%emt 00:00:05]} 36. Kc4 {[%clk 00:25:02]} {[%emt 00:00:13]}
Nb8 {[%clk 00:22:05]} {[%emt 00:00:08]} 37. Nxe5+ {[%clk 00:25:10]} {[%emt
00:00:04]} Kg5 {[%clk 00:21:55]} {[%emt 00:00:21]} 38. Nf3+ {[%clk 00:25:12]}
{[%emt 00:00:09]} Kf4 {[%emt 00:00:06]} 39. Rxf6 {[%emt 00:00:03]} Kg4 {[%clk
00:21:49]} {[%emt 00:00:04]} 40. Rh6 {[%clk 00:25:18]} {[%emt 00:00:05]} Kg5
{[%clk 00:21:56]} {[%emt 00:00:02]} 41. Rxh7+ {[%clk 00:25:27]} {[%emt
00:00:02]} Kg6 {[%clk 00:21:51]} {[%emt 00:00:15]} 42. Rb7 {[%clk 00:25:29]}
{[%emt 00:00:08]} Nc6 {[%clk 00:21:58]} {[%emt 00:00:04]} 43. Rb6 {[%clk
00:25:38]} {[%emt 00:00:02]} Kf7 {[%clk 00:21:57]} {[%emt 00:00:09]} 44. Rxc6
{[%clk 00:25:48]} {[%emt 00:00:02]} Ke7 {[%clk 00:22:06]} {[%emt 00:00:02]} 45.
Kd5 {[%clk 00:25:55]} {[%emt 00:00:02]} Kd7 {[%clk 00:22:15]} {[%emt 00:00:02]}
46. Ra6 {[%clk 00:26:04]} Ke7 {[%clk 00:22:23]} {[%emt 00:00:01]} 47. Nd4
{[%clk 00:26:12]} {[%emt 00:00:03]} Kd7 {[%clk 00:22:31]} {[%emt 00:00:01]} 48.
Ra7+ {[%clk 00:26:21]} {[%emt 00:00:01]} Ke8 {[%clk 00:22:40]} {[%emt
00:00:02]} 49. Kd6 {[%clk 00:26:31]} Kf8 {[%clk 00:22:47]} {[%emt 00:00:02]} 50.
Ke6 {[%clk 00:26:40]} Kg8 {[%clk 00:22:55]} {[%emt 00:00:02]} 51. Kf6 {[%clk
00:26:50]} Kh8 {[%clk 00:23:02]} {[%emt 00:00:04]} 52. Kg6 {[%clk 00:26:59]}
{[%emt 00:00:02]} Kg8 {[%clk 00:22:57]} {[%emt 00:00:02]} 53. Ra8# {[%clk
00:26:58]} {[%emt 00:00:13]} 1-0

[Event "ONJK FGH 1"]
[Site "Enschede, Netherlands"]
[Date "2022.08.09"]
[Round "3.3"]
[White "Verwer, Cedric"]
[Black "Mousa, Besher"]
[Result "1-0"]
[TimeControl "25min + 10sec/move"]
[WhiteElo "552"]
[BlackElo "782"]

1. e4 {[%clk 00:25:18]} {[%emt 00:00:01]} e5 {[%clk 00:25:19]} 2. Nf3 {[%clk
00:25:27]} {[%emt 00:00:01]} Nc6 {[%clk 00:25:28]} {[%emt 00:00:02]} 3. d4
{[%clk 00:25:35]} {[%emt 00:00:01]} f6 {[%clk 00:25:34]} {[%emt 00:00:04]} 4.
d5 {[%clk 00:25:44]} Nb8 {[%clk 00:25:40]} {[%emt 00:00:04]} 5. Bc4 {[%clk
00:25:53]} {[%emt 00:00:01]} Bc5 {[%clk 00:25:46]} {[%emt 00:00:04]} 6. O-O
{[%clk 00:26:00]} {[%emt 00:00:02]} a6 {[%clk 00:25:51]} {[%emt 00:00:05]} 7.
Nc3 {[%clk 00:25:55]} {[%emt 00:00:15]} b5 {[%clk 00:25:59]} {[%emt 00:00:02]}
8. Bd3 {[%clk 00:26:02]} {[%emt 00:00:03]} Ne7 {[%clk 00:26:02]} {[%emt
00:00:06]} 9. Be3 {[%clk 00:26:05]} {[%emt 00:00:08]} d6 {[%clk 00:26:02]}
{[%emt 00:00:10]} 10. a3 {[%clk 00:26:02]} {[%emt 00:00:13]} Bg4 {[%clk
00:26:01]} {[%emt 00:00:10]} 11. b4 {[%clk 00:26:05]} {[%emt 00:00:09]} Bb6
{[%clk 00:26:07]} {[%emt 00:00:04]} 12. a4 {[%clk 00:26:03]} {[%emt 00:00:11]}
Nd7 {[%clk 00:25:56]} {[%emt 00:00:21]} 13. a5 {[%clk 00:26:11]} {[%emt
00:00:02]} Ba7 {[%clk 00:25:59]} {[%emt 00:00:05]} 14. Bxa7 {[%clk 00:26:08]}
{[%emt 00:00:15]} Rxa7 {[%clk 00:26:07]} {[%emt 00:00:03]} 15. Ne2 {[%clk
00:26:09]} {[%emt 00:00:08]} O-O {[%clk 00:26:11]} {[%emt 00:00:05]} 16. c4
{[%clk 00:26:06]} {[%emt 00:00:13]} bxc4 {[%clk 00:26:10]} {[%emt 00:00:11]} 17.
Bxc4 {[%clk 00:26:15]} h6 {[%clk 00:25:08]} {[%emt 00:01:13]} 18. b5 {[%clk
00:26:21]} {[%emt 00:00:02]} axb5 {[%clk 00:25:12]} {[%emt 00:00:07]} 19. Bxb5
{[%clk 00:26:29]} {[%emt 00:00:03]} c6 {[%clk 00:25:03]} {[%emt 00:00:19]} 20.
dxc6 {[%clk 00:26:34]} {[%emt 00:00:05]} Rxa5 {[%clk 00:25:08]} {[%emt
00:00:04]} 21. Qb3+ {[%clk 00:26:20]} {[%emt 00:00:24]} Rxa1 {[%clk 00:25:09]}
{[%emt 00:00:08]} 22. Rxa1+ {[%clk 00:26:29]} {[%emt 00:00:03]} Kh8 {[%clk
00:24:20]} {[%emt 00:00:58]} 23. cxd7 {[%clk 00:26:35]} {[%emt 00:00:04]} Bxd7
{[%clk 00:24:28]} {[%emt 00:00:03]} 24. Rd1 {[%clk 00:26:27]} {[%emt 00:00:18]}
Bxb5 {[%clk 00:24:13]} {[%emt 00:00:24]} 25. Qxb5 {[%clk 00:26:35]} {[%emt
00:00:02]} Qa8 {[%clk 00:24:01]} {[%emt 00:00:18]} 26. Qd7 {[%clk 00:26:24]}
{[%emt 00:00:26]} Ng6 {[%clk 00:23:21]} {[%emt 00:00:48]} 27. Nc3 {[%clk
00:26:24]} {[%emt 00:00:11]} Nf4 {[%clk 00:22:40]} {[%emt 00:00:48]} 28. Nh4
{[%clk 00:26:27]} {[%emt 00:00:11]} f5 {[%clk 00:21:14]} {[%emt 00:01:35]} 29.
g3 {[%clk 00:26:13]} {[%emt 00:00:25]} Nh3+ {[%clk 00:21:08]} {[%emt 00:00:08]}
30. Kf1 {[%clk 00:26:13]} {[%emt 00:00:16]} Qa6+ {[%clk 00:20:50]} {[%emt
00:00:27]} 31. Ne2 {[%clk 00:26:19]} {[%emt 00:00:06]} Qb6 {[%clk 00:20:07]}
{[%emt 00:00:47]} 32. Ng6+ {[%clk 00:26:11]} {[%emt 00:00:24]} Kg8 {[%clk
00:20:08]} {[%emt 00:00:03]} 33. Qe6+ {[%clk 00:26:19]} {[%emt 00:00:08]} Rf7
{[%clk 00:19:34]} {[%emt 00:00:44]} 34. Ne7+ {[%emt 00:01:43]} Kh7 {[%emt
00:00:09]} 35. Qg6+ {[%clk 00:25:16]} {[%emt 00:00:11]} Kh8 {[%clk 00:19:06]}
{[%emt 00:00:05]} 36. Kg2 {[%clk 00:25:23]} {[%emt 00:00:07]} Qxf2+ {[%clk
00:18:33]} {[%emt 00:00:40]} 37. Kxh3 {[%clk 00:25:31]} {[%emt 00:00:04]} Qxe2
{[%clk 00:18:07]} {[%emt 00:00:36]} 38. Rxd6 {[%clk 00:25:38]} {[%emt
00:00:02]} Qf1+ {[%clk 00:18:12]} {[%emt 00:00:05]} 39. Kh4 {[%clk 00:25:43]}
{[%emt 00:00:07]} Qe2 {[%clk 00:17:06]} {[%emt 00:01:08]} 40. Rd8+ {[%clk
00:25:50]} {[%emt 00:00:10]} Rf8 {[%clk 00:16:58]} {[%emt 00:00:12]} 41. Rxf8#
{[%clk 00:25:58]} {[%emt 00:00:07]} 1-0